bitfinex-derivatives/quotes_BNBF0:USTF0_20250603
["timestamp","ask_amount","ask_price","bid_price","bid_amount"]
[1748938744082,1.323,664.48,664.04,1.1244433]
[1748938744577,1.323,664.48,664.03,1.1244433]
[1748938744881,1.323,664.48,664.04,1.12369461]
[1748938745081,0.41631998,664.47,664.04,1.12369461]
[1748938745278,0.41631998,664.46,664.04,1.12369461]
[1748938745485,1.323,664.48,664.03,1.12369461]
[1748938745683,0.41631982,664.47,664.04,1.12369461]
[1748938745885,1.323,664.48,664.19,1.12369461]
[1748938746380,0.41633135,664.47,664.19,1.12369461]
[1748938746581,1.323,664.48,664.18,1.12369461]
[1748938746785,0.41633139,664.47,664.18,1.12369461]
[1748938746987,1.323,664.48,664.18,1.12369461]
[1748938747485,1.323,664.48,664.17,1.12369461]
[1748938748385,0.41633293,664.47,664.17,1.12369461]
[1748938748586,1.323,664.48,664.17,1.12269848]
[1748938748887,1.323,664.48,664.16,1.12269848]
[1748938749082,1.323,664.48,664.17,1.12269848]
[1748938749389,1.323,664.48,664.16,1.12269848]
[1748938750080,1.323,664.48,664.17,1.12269848]
[1748938750287,0.41290878,664.49,664.17,1.12269848]
[1748938750588,0.41290878,664.49,664.16,1.12269848]
[1748938750983,0.41290878,664.49,664.17,1.12269848]
[1748938751182,0.41290878,664.49,664.19,1.12269848]
[1748938751379,0.41290878,664.49,663.89,2.24043547]
[1748938751380,0.41290878,664.49,664.2,1.12269848]
[1748938751579,0.41290878,664.49,664.19,1.12269848]
[1748938752180,0.41290878,664.49,664.2,1.12269848]
[1748938752385,0.41290878,664.49,664.2,1.1219105]
[1748938752585,0.41517193,664.48,664.19,1.1219105]
[1748938752782,0.41290878,664.49,664.19,1.1219105]
[1748938752986,1.233,664.48,664.19,1.1219105]
[1748938753587,1.233,664.48,664.18,1.1219105]
[1748938754288,0.41516753,664.47,664.18,1.1219105]
[1748938754487,1.233,664.48,664.16,1.1219105]
[1748938754688,0.4151602,664.47,664.16,1.1219105]
[1748938754883,0.41516178,664.46,664.17,1.1219105]
[1748938755090,1.233,664.48,664.17,1.1219105]
[1748938755384,1.233,664.48,664.16,1.1219105]
[1748938755593,0.41485078,664.47,664.16,1.1219105]
[1748938755785,1.233,664.48,664.19,1.1219105]
[1748938755982,1.233,664.48,664.07,1.49729987]
[1748938756185,1.233,664.48,664.19,1.1211101]
[1748938756486,1.233,664.48,664.16,1.1211101]
[1748938756683,1.233,664.48,664.21,1.1211101]
[1748938756885,0.41487637,664.47,664.22,1.1211101]
[1748938757089,1.233,664.48,664.22,1.1211101]
[1748938757688,0.41488521,664.47,664.22,1.1211101]
[1748938757886,1.233,664.48,664.22,1.1211101]
[1748938758492,1.233,664.48,664.21,1.1211101]
[1748938758692,0.41431744,664.47,664.21,1.1211101]
[1748938758893,0.41432722,664.46,664.21,1.1211101]
[1748938759094,0.41432154,664.45,664.21,1.1211101]
[1748938759389,1.233,664.48,664.19,1.1211101]
[1748938760193,1.233,664.48,664.19,1.12016085]
[1748938760694,1.233,664.48,664.18,1.12016085]
[1748938761095,1.233,664.48,664.2,1.12016085]
[1748938761399,0.41426757,664.47,664.2,1.12016085]
[1748938761597,1.233,664.48,664.2,1.12016085]
[1748938761793,0.41426776,664.47,664.2,1.12016085]
[1748938762094,1.233,664.48,664.2,1.12016085]
[1748938762495,0.41424904,664.47,664.19,1.12016085]
[1748938762694,1.233,664.48,664.19,1.12016085]
[1748938763094,0.41424298,664.47,664.19,1.12016085]
[1748938763398,1.233,664.48,664.19,1.12016085]
[1748938763600,0.41424398,664.47,664.19,1.12016085]
[1748938763799,1.233,664.48,664.19,1.12016085]
[1748938763995,1.233,664.48,664.19,1.11971543]
[1748938764597,1.233,664.48,664.18,1.11971543]
[1748938764799,1.233,664.48,664.17,1.11971543]
[1748938765402,0.41423459,664.47,664.17,1.11971543]
[1748938765596,1.233,664.48,664.17,1.11971543]
[1748938765799,1.233,664.48,663.62,0.30137729]
[1748938765800,1.233,664.48,664.16,1.11971543]
[1748938766505,1.233,664.48,664.15,1.11971543]
[1748938767705,1.233,664.48,664.0,1.49729987]
[1748938767899,1.233,664.48,664.15,1.11957662]
[1748938769010,0.41290878,664.49,664.15,1.11957662]
[1748938770004,0.41290878,664.49,664.16,1.11957662]
[1748938770406,0.41290878,664.49,664.17,1.11957662]
[1748938770606,0.41290878,664.49,664.18,1.11957662]
[1748938771403,0.41290878,664.49,664.17,1.11957662]
[1748938771606,0.899,664.48,664.18,1.11973034]
[1748938773105,0.899,664.48,664.19,1.11973034]
[1748938774407,0.899,664.48,664.16,1.11973034]
[1748938774605,0.899,664.48,664.17,1.11973034]
[1748938775101,0.899,664.48,664.16,1.11973034]
[1748938775508,0.899,664.48,664.17,1.12011492]
[1748938775905,0.899,664.48,664.04,1.49729987]
[1748938776405,0.899,664.48,663.88,1.49729987]
[1748938776703,0.899,664.48,663.62,0.30137729]
[1748938776704,0.899,664.48,663.75,1.49729987]
[1748938776910,0.899,664.48,663.76,0.30131372]
[1748938777909,0.88,664.47,663.76,0.30131372]
[1748938778306,0.41438013,664.46,663.76,0.30131372]
[1748938778507,0.88,664.47,663.76,1.79861359]
[1748938778708,0.88,664.47,663.79,1.49729987]
[1748938779004,0.88,664.47,663.82,1.49729987]
[1748938779706,0.88,664.47,663.83,1.49729987]
[1748938780110,0.88,664.47,663.76,0.30131372]
[1748938780111,0.88,664.47,663.84,1.49729987]
[1748938780309,0.88,664.47,663.85,1.49729987]
[1748938780513,0.26201367,664.34,663.87,1.49729987]
[1748938780712,0.26201367,664.34,663.88,1.49729987]
[1748938780713,0.4144447,664.33,663.88,1.49729987]
[1748938780912,0.26201367,664.34,663.88,1.49729987]
[1748938781210,0.26201367,664.34,663.91,1.49729987]
[1748938781911,0.41451671,664.33,663.91,1.49729987]
[1748938782116,0.26201367,664.34,663.91,1.49729987]
[1748938782612,0.26201367,664.34,663.92,1.49729987]
[1748938783217,0.41452165,664.33,663.92,1.49729987]
[1748938783416,0.26201367,664.34,663.92,1.49729987]
[1748938784119,0.41452887,664.33,663.92,1.49729987]
[1748938784313,0.26201367,664.34,663.92,1.49729987]
[1748938784517,0.26201367,664.34,663.93,1.49729987]
[1748938785020,0.41452414,664.33,663.91,1.49729987]
[1748938785315,0.26201367,664.34,663.91,1.49729987]
[1748938785719,0.41453244,664.33,663.91,1.49729987]
[1748938785916,0.26201367,664.34,663.91,1.49729987]
[1748938786315,0.41452793,664.33,663.91,1.49729987]
[1748938786514,0.26201367,664.34,663.92,1.49729987]
[1748938787018,0.41559299,664.33,663.95,1.49729987]
[1748938787319,0.26201367,664.34,663.95,1.49729987]
[1748938787517,0.26201367,664.34,663.93,1.49729987]
[1748938787716,0.875,664.44,663.81,1.49729987]
[1748938787912,0.875,664.44,663.86,1.49729987]
[1748938788118,0.875,664.44,663.88,1.49729987]
[1748938788719,1.098,664.43,663.89,1.49729987]
[1748938788914,0.41562698,664.42,664.04,1.49729987]
[1748938789120,0.41563552,664.41,664.06,1.49729987]
[1748938789315,1.098,664.43,664.06,1.49729987]
[1748938789519,1.098,664.43,664.07,1.49729987]
[1748938790020,0.41564046,664.42,664.08,1.49729987]
[1748938790221,1.098,664.43,664.08,1.49729987]
[1748938790720,0.41563893,664.42,664.08,1.49729987]
[1748938790920,1.098,664.43,664.08,1.49729987]
[1748938791114,0.41563976,664.42,664.08,1.49729987]
[1748938791313,0.41563464,664.41,663.96,1.49729987]
[1748938791519,1.098,664.43,663.97,1.49729987]
[1748938792719,0.41568621,664.42,663.97,1.49729987]
[1748938792915,1.098,664.43,663.98,1.49729987]
[1748938793319,0.41569605,664.42,663.98,1.49729987]
[1748938793520,1.098,664.43,663.99,1.49729987]
[1748938793921,0.41569523,664.42,663.99,1.49729987]
[1748938794222,1.098,664.43,663.99,1.49729987]
[1748938794418,1.098,664.43,663.98,1.49729987]
[1748938794616,1.71669656,664.42,663.99,1.49729987]
[1748938794822,1.301,664.42,664.0,1.49729987]
[1748938795221,1.301,664.42,663.99,1.49729987]
[1748938795222,0.41569183,664.41,663.99,1.49729987]
[1748938795524,1.301,664.42,663.99,1.49729987]
[1748938796522,1.301,664.42,663.83,2.24043547]
[1748938796523,1.301,664.42,664.0,1.49729987]
[1748938797120,0.41569305,664.41,664.0,1.49729987]
[1748938797421,1.301,664.42,663.99,1.49729987]
[1748938797621,0.41569203,664.41,664.0,1.49729987]
[1748938797816,1.301,664.42,664.0,1.49729987]
[1748938798321,0.41569362,664.41,664.0,1.49729987]
[1748938798525,1.301,664.42,664.01,1.49729987]
[1748938799018,0.41568259,664.41,663.76,0.30131372]
[1748938799222,1.301,664.42,663.76,0.30131372]
[1748938799821,1.301,664.42,663.99,1.49933898]
[1748938800218,0.41569616,664.41,663.98,1.49933898]
[1748938800422,0.41569616,664.41,663.76,0.30131372]
[1748938800822,0.41569325,664.4,663.76,0.30131372]
[1748938801023,0.41569616,664.41,663.76,0.30131372]
[1748938801526,0.41569331,664.4,663.76,0.30131372]
[1748938801717,0.41569616,664.41,663.76,0.30131372]
[1748938801917,0.41569406,664.4,663.76,0.30131372]
[1748938802119,0.41569231,664.39,664.03,1.49935777]
[1748938802322,0.41569231,664.38,664.04,1.49935777]
[1748938803521,0.41569231,664.38,663.76,0.30131372]
[1748938803522,0.41569231,664.38,664.03,1.49935777]
[1748938804328,1.26269999,664.37,663.76,0.30131372]
[1748938804529,0.41569884,664.36,663.76,0.30131372]
[1748938804731,0.847,664.37,663.76,0.30131372]
[1748938804924,0.41569885,664.36,663.76,0.30131372]
[1748938805130,0.847,664.37,664.05,1.49932065]
[1748938806426,0.847,664.37,664.04,1.49932065]
[1748938807328,0.4158793,664.36,664.04,1.49932065]
[1748938807532,0.41587978,664.35,664.04,1.49932065]
[1748938807733,0.847,664.37,664.04,1.49932065]
[1748938807931,0.41587946,664.36,664.04,1.49932065]
[1748938808127,0.847,664.37,664.04,1.49932065]
[1748938808728,0.41587647,664.36,664.04,1.49932065]
[1748938808928,0.847,664.37,664.04,1.49932065]
[1748938809133,0.847,664.37,664.06,1.49932065]
[1748938809626,0.41588415,664.36,663.76,0.30131372]
[1748938809825,0.847,664.37,663.76,0.30131372]
[1748938810427,0.847,664.37,664.06,1.49931009]
[1748938810934,0.41586122,664.36,664.07,1.49931009]
[1748938811131,0.847,664.37,664.07,1.49931009]
[1748938812126,0.847,664.37,664.06,1.49931009]
[1748938812530,0.847,664.37,664.07,1.49931009]
[1748938812727,0.847,664.37,664.06,1.49931009]
[1748938812928,0.847,664.37,664.07,1.49931009]
[1748938814735,0.847,664.37,663.76,0.30131372]
[1748938815635,0.847,664.37,664.07,1.49938381]
[1748938816235,0.847,664.37,664.08,1.49938381]
[1748938816437,0.847,664.37,664.1,1.49938381]
[1748938816632,0.847,664.37,664.09,1.49938381]
[1748938817037,0.847,664.37,664.11,1.49938381]
[1748938817637,0.847,664.37,664.13,1.49938381]
[1748938817935,0.847,664.37,664.15,1.49938381]
[1748938818337,0.847,664.37,664.16,1.49938381]
[1748938818638,0.847,664.37,664.17,1.49938381]
[1748938819237,0.847,664.37,664.14,1.49938381]
[1748938820932,0.847,664.37,663.76,0.30131372]
[1748938821438,1.336,664.36,663.76,0.30131372]
[1748938821840,1.336,664.36,664.15,1.49956085]
[1748938822842,1.336,664.36,664.14,1.49956085]
[1748938825341,1.336,664.36,664.15,1.49956085]
[1748938826138,1.336,664.36,664.14,1.49956085]
[1748938826536,1.336,664.36,664.15,1.49956085]
[1748938826941,1.336,664.36,664.14,1.49956085]
[1748938827536,1.336,664.36,664.17,1.49956085]
[1748938829143,1.336,664.36,664.21,1.49956085]
[1748938829343,1.336,664.36,664.22,1.49956085]
[1748938831343,1.336,664.36,664.15,1.49956085]
[1748938832237,1.336,664.36,664.16,1.49956085]
[1748938833244,1.336,664.36,664.15,1.49956085]
[1748938833544,1.336,664.36,664.16,1.49956085]
[1748938834145,1.336,664.36,664.15,1.49956085]
[1748938834344,1.336,664.36,664.16,1.49956085]
[1748938834541,1.336,664.36,664.17,1.49956085]
[1748938836047,1.336,664.36,664.21,1.49956085]
[1748938836248,1.336,664.36,664.22,1.49956085]
[1748938836445,1.336,664.36,664.23,1.49956085]
[1748938836749,1.336,664.36,664.31,1.49956085]
[1748938837047,1.336,664.36,664.34,1.49956085]
[1748938837447,1.336,664.36,664.35,1.49956085]
[1748938838643,1.336,664.36,664.21,2.24934128]
[1748938839047,1.336,664.36,664.22,2.24934128]
[1748938839248,1.336,664.36,664.34,1.49739857]
[1748938839449,1.336,664.36,664.35,1.49739857]
[1748938839651,1.336,664.36,664.34,1.49739857]
[1748938839847,1.336,664.36,664.21,2.24934128]
[1748938840151,1.336,664.36,664.35,1.49698821]
[1748938840850,1.336,664.36,664.34,1.49698821]
[1748938841245,1.336,664.36,664.32,1.49698821]
[1748938842650,1.336,664.36,664.31,1.49698821]
[1748938843251,1.336,664.36,664.3,1.49698821]
[1748938843548,1.336,664.36,664.32,1.49698821]
[1748938843754,1.336,664.36,664.31,1.49698821]
[1748938844351,1.336,664.36,664.3,1.49698821]
[1748938845150,1.336,664.36,664.29,1.49698821]
[1748938845550,1.336,664.36,664.31,1.49698821]
[1748938846151,1.336,664.36,664.3,1.49698821]
[1748938846351,1.336,664.36,664.31,1.49698821]
[1748938846550,1.336,664.36,664.32,1.49698821]
[1748938846752,1.336,664.36,664.31,1.49698821]
[1748938847251,1.336,664.36,664.32,1.49698821]
[1748938847755,0.847,664.37,663.76,0.30131372]
[1748938847756,0.847,664.37,664.33,1.49698821]
[1748938848152,0.847,664.37,664.32,1.49698821]
[1748938848351,0.41569231,664.38,664.32,1.49698821]
[1748938848656,0.41569231,664.38,664.33,1.49698821]
[1748938849158,0.41569231,664.38,664.32,1.49698821]
[1748938850459,0.41569231,664.38,664.31,1.49698821]
[1748938851256,0.41569231,664.38,664.3,1.49698821]
[1748938851751,0.41569231,664.38,664.31,1.49698821]
[1748938852357,0.41569231,664.38,664.3,1.49698821]
[1748938852658,0.41569231,664.38,664.31,1.49698821]
[1748938853358,0.41569231,664.38,664.3,1.49698821]
[1748938853558,0.41569231,664.38,664.31,1.49698821]
[1748938853759,0.41569231,664.38,664.3,1.49698821]
[1748938854155,0.41569231,664.38,664.29,1.49698821]
[1748938855359,0.41569231,664.38,664.3,1.49698821]
[1748938855656,0.41569231,664.38,664.29,1.49698821]
[1748938856455,0.41569231,664.38,664.3,1.49698821]
[1748938857962,0.41569231,664.38,664.29,1.49698821]
[1748938858862,0.41569231,664.38,663.76,0.30131372]
[1748938858863,0.41569231,664.38,664.25,1.49698821]
[1748938859059,0.41569231,664.38,664.29,1.49698821]
[1748938860065,0.41569231,664.38,664.32,1.49698821]
[1748938860259,0.41569231,664.38,664.35,1.49698821]
[1748938860463,0.41569231,664.38,664.26,0.30108692]
[1748938860864,0.41569231,664.38,664.29,2.24934128]
[1748938861064,0.41569231,664.38,664.3,2.55041007]
[1748938861259,0.41569231,664.38,664.31,2.55040554]
[1748938861659,0.41569231,664.38,664.31,0.30106426]
[1748938862366,0.41569231,664.38,664.31,2.55040554]
[1748938862665,0.41569231,664.38,664.31,0.30106426]
[1748938863767,0.41569231,664.38,664.37,1.49330767]
[1748938863968,0.41569231,664.38,664.36,1.49330767]
[1748938864266,0.41569231,664.38,664.35,1.49330767]
[1748938864469,0.41569231,664.38,664.32,1.49330767]
[1748938864763,0.41569231,664.38,664.31,1.79437193]
[1748938864962,0.41569231,664.38,664.31,0.30106426]
[1748938866970,0.41569231,664.38,664.35,1.12027818]
[1748938867369,0.41569231,664.38,664.34,1.12027818]
[1748938867771,0.41569231,664.38,664.33,1.12027818]
[1748938867969,0.41569231,664.38,664.31,1.42134244]
[1748938868471,0.41569231,664.38,664.31,0.30106426]
[1748938880186,0.41569231,664.38,664.31,1.42332324]
[1748938880585,0.41569231,664.38,664.31,1.42381968]
[1748938880885,0.41569231,664.38,664.32,1.12275542]
[1748938881986,0.41569231,664.38,664.34,1.12275542]
[1748938883380,0.41569231,664.38,664.31,0.30106426]
[1748938883381,0.41569231,664.38,664.37,1.12275542]
[1748938884681,0.41569231,664.38,664.37,1.12317265]
[1748938885084,0.41569231,664.38,664.31,0.30106426]
[1748938886490,0.41569231,664.38,664.31,1.79437193]
[1748938886690,0.41569231,664.38,664.31,0.30106426]
[1748938901702,0.41569231,664.38,664.31,1.79437193]
[1748938903703,0.41569231,664.38,664.33,1.49330767]
[1748938904600,0.41569231,664.38,664.31,0.30106426]
[1748938920516,0.41569231,664.38,664.31,1.80028205]
[1748938920713,0.41569231,664.38,664.32,1.49921779]
[1748938920917,0.41569231,664.38,664.31,0.30106426]
[1748938923523,0.41569231,664.38,664.31,1.80028205]
[1748938924523,0.41569231,664.38,664.32,1.49921779]
[1748938925317,0.41569231,664.38,664.31,0.30106426]
[1748938926122,0.41569231,664.38,664.31,1.80028205]
[1748938927622,0.41569231,664.38,664.32,1.49921779]
[1748938929126,0.41569231,664.38,664.33,1.49921779]
[1748938930827,0.41569231,664.38,664.35,1.49921779]
[1748938931421,0.41569231,664.38,663.95,0.47883605]
[1748938931422,0.41569231,664.38,664.36,1.49921779]
[1748938931623,1.245,664.72,664.36,1.49921779]
[1748938931828,1.245,664.72,664.48,1.12608866]
[1748938932028,0.41883549,664.71,664.48,1.12608866]
[1748938932221,1.245,664.72,664.49,1.12608866]
[1748938932727,1.12163986,665.0,664.49,1.12608866]
[1748938933527,1.12163986,665.0,664.34,1.12608866]
[1748938933922,0.41885246,664.98,664.34,1.12608866]
[1748938934123,1.12163986,665.0,664.34,1.12608866]
[1748938934526,1.12163986,665.0,664.33,1.12608866]
[1748938935527,1.075,664.98,663.54,0.47883605]
[1748938935728,0.41879587,664.97,663.56,0.30140454]
[1748938935926,1.49379751,664.98,663.56,0.30140454]
[1748938936328,1.49379751,664.98,664.31,1.1258413]
[1748938936733,0.41879621,664.97,664.31,1.1258413]
[1748938936927,0.41879967,664.96,664.31,1.1258413]
[1748938937127,1.49379751,664.98,664.31,1.12572808]
[1748938937828,0.42021984,664.97,664.31,1.12572808]
[1748938938034,1.49379751,664.98,664.31,1.12572808]
[1748938938427,1.49379751,664.98,664.3,1.12572808]
[1748938938635,1.52522099,664.97,664.3,1.12572808]
[1748938938835,1.105,664.97,664.3,1.12572808]
[1748938939535,1.105,664.97,664.29,1.12572808]
[1748938939731,0.42021921,664.96,664.29,1.12572808]
[1748938939937,1.105,664.97,664.29,1.12572808]
[1748938940531,0.4202192,664.96,664.29,1.12572808]
[1748938940731,1.105,664.97,664.29,1.12572808]
[1748938940933,0.42021987,664.96,664.29,1.12572808]
[1748938941134,1.105,664.97,664.31,1.12572808]
[1748938941535,0.42021956,664.96,664.3,1.12572808]
[1748938941734,1.105,664.97,664.3,1.12572808]
[1748938941932,0.42021926,664.96,664.3,1.12572808]
[1748938942137,1.105,664.97,664.3,1.12572808]
[1748938942738,0.42026861,664.96,664.3,1.12572808]
[1748938942939,0.42026904,664.95,664.3,1.12572808]
[1748938943134,0.42026903,664.94,664.3,1.12572808]
[1748938943340,1.105,664.97,664.32,1.12572808]
[1748938943538,0.42026908,664.96,664.32,1.12572808]
[1748938944138,1.105,664.97,664.32,1.12572808]
[1748938944641,1.105,664.97,664.32,1.12504023]
[1748938945637,1.105,664.97,664.34,1.12504023]
[1748938946242,0.42027101,664.95,664.33,1.12504023]
[1748938946639,1.105,664.97,664.33,1.12504023]
[1748938946839,2.2252926,664.97,664.35,1.12504023]
[1748938947139,1.105,664.97,664.35,1.12504023]
[1748938948246,1.448,664.96,664.35,1.12504023]
[1748938948648,1.448,664.96,664.35,1.12478439]
[1748938949148,1.448,664.96,663.56,4.05420889]
[1748938949149,1.11969696,664.95,664.37,1.12478439]
[1748938949847,1.448,664.96,664.35,1.12478439]
[1748938950346,1.448,664.96,664.36,1.12478439]
[1748938950543,1.448,664.96,664.35,1.12478439]
[1748938951647,2.56769696,664.96,664.36,1.12478439]
[1748938952042,0.42009331,664.95,664.36,1.12478439]
[1748938952443,0.42009331,664.95,664.23,1.50112174]
[1748938952644,0.42009331,664.95,664.36,1.12462101]
[1748938953049,0.42009466,664.94,664.36,1.12462101]
[1748938953248,0.42009331,664.95,664.36,1.12462101]
[1748938953549,1.13,664.93,664.36,1.12462101]
[1748938953847,0.42009106,664.92,664.36,1.12462101]
[1748938954043,1.13,664.93,664.36,1.12462101]
[1748938954444,0.42010438,664.92,664.36,1.12462101]
[1748938954647,0.42010438,664.91,664.36,1.12462101]
[1748938954949,0.42010484,664.9,664.36,1.12462101]
[1748938955145,0.42010493,664.89,664.36,1.12462101]
[1748938955448,1.13,664.93,664.36,1.12462101]
[1748938955648,0.42010257,664.92,664.36,1.12462101]
[1748938955848,1.13,664.93,664.36,1.12462101]
[1748938956042,0.42010286,664.92,664.36,1.12462101]
[1748938956244,1.13,664.93,664.36,1.12462101]
[1748938956443,1.13,664.93,664.36,1.1245907]
[1748938957246,0.846,664.92,664.36,1.1245907]
[1748938957643,0.846,664.92,664.33,1.1245907]
[1748938957850,0.42016589,664.91,664.4,1.1245907]
[1748938958350,0.42014604,664.9,664.4,1.1245907]
[1748938958545,0.846,664.92,664.41,1.1245907]
[1748938958744,0.846,664.92,664.42,1.1245907]
[1748938959050,0.42015005,664.91,664.41,1.1245907]
[1748938959350,0.846,664.92,664.41,1.1245907]
[1748938959545,0.846,664.92,664.4,1.1245907]
[1748938959850,0.42014273,664.91,664.4,1.1245907]
[1748938960049,0.846,664.92,664.4,1.1245907]
[1748938960250,0.846,664.92,664.24,1.50112174]
[1748938960544,0.42019643,664.91,664.4,1.12457033]
[1748938960744,0.846,664.92,664.4,1.12457033]
[1748938961148,1.285,664.91,664.4,1.12457033]
[1748938961343,0.42019355,664.9,664.41,1.12457033]
[1748938961545,0.42019625,664.89,664.41,1.12457033]
[1748938961742,0.42019594,664.88,664.41,1.12457033]
[1748938961948,0.42019594,664.87,664.41,1.12457033]
[1748938962250,1.285,664.91,664.42,1.12457033]
[1748938962451,1.107,664.87,664.42,1.12457033]
[1748938962751,1.107,664.87,664.41,1.12457033]
[1748938963545,0.42019493,664.86,664.41,1.12457033]
[1748938963744,1.107,664.87,664.41,1.12457033]
[1748938963945,0.4201957,664.86,664.41,1.12457033]
[1748938964246,1.107,664.87,664.41,1.12457033]
[1748938965150,0.42019507,664.86,664.41,1.12457033]
[1748938965348,1.107,664.87,664.41,1.12457033]
[1748938965544,1.211,664.85,664.41,1.12457033]
[1748938965744,0.42019353,664.84,664.41,1.12457033]
[1748938965944,1.211,664.85,664.41,1.12457033]
[1748938966145,1.211,664.85,664.43,1.12457033]
[1748938967549,1.211,664.85,664.44,1.12457033]
[1748938967753,0.42019381,664.84,664.44,1.12457033]
[1748938967947,0.42019381,664.84,664.45,1.12457033]
[1748938968153,1.211,664.85,664.45,1.12507417]
[1748938968653,0.42019255,664.84,664.45,1.12507417]
[1748938968953,0.42019232,664.83,664.46,1.12507417]
[1748938969156,1.211,664.85,664.46,1.12507417]
[1748938969356,1.211,664.85,664.42,1.12507417]
[1748938969555,1.211,664.85,664.43,1.12507417]
[1748938970354,0.4201929,664.84,664.43,1.12507417]
[1748938970556,1.211,664.85,664.44,1.12507417]
[1748938970756,0.4201929,664.83,664.44,1.12507417]
[1748938971359,0.4202044,664.82,664.39,1.12507417]
[1748938971556,0.4201929,664.83,664.39,1.12507417]
[1748938971760,0.41951191,664.82,664.39,1.12507417]
[1748938971961,0.4201929,664.83,664.39,1.12570996]
[1748938972360,0.41950935,664.82,664.39,1.12570996]
[1748938972558,0.4201929,664.83,664.39,1.12570996]
[1748938972757,0.419509,664.82,664.39,1.12570996]
[1748938972958,0.419509,664.81,664.39,1.12570996]
[1748938973161,0.4201929,664.83,664.39,1.12570996]
[1748938973559,0.41950996,664.82,664.4,1.12570996]
[1748938973763,0.41950979,664.81,664.4,1.12570996]
[1748938974064,0.41951055,664.8,664.4,1.12570996]
[1748938974261,0.4201929,664.83,664.4,1.12570996]
[1748938974461,0.41951154,664.82,664.4,1.12570996]
[1748938974665,0.4201929,664.83,664.4,1.12570996]
[1748938974865,0.41951154,664.82,664.4,1.12570996]
[1748938975064,0.4201929,664.83,664.4,1.12570996]
[1748938975261,1.209,664.81,664.4,1.12570996]
[1748938975466,1.209,664.81,664.41,1.12570996]
[1748938975660,1.209,664.81,664.39,1.12648424]
[1748938975863,1.209,664.81,664.22,1.50112174]
[1748938976060,1.209,664.81,664.39,1.12648444]
[1748938976565,0.41899193,664.8,664.4,1.12648444]
[1748938976759,1.209,664.81,664.4,1.12648444]
[1748938976958,0.41898945,664.8,664.39,1.12648444]
[1748938977162,1.209,664.81,664.39,1.12648444]
[1748938977860,0.41899188,664.8,664.39,1.12648444]
[1748938978061,1.209,664.81,664.4,1.12648444]
[1748938978962,0.41899093,664.8,664.4,1.12648444]
[1748938979161,1.209,664.81,664.4,1.12648444]
[1748938979359,0.41898926,664.8,664.39,1.12648444]
[1748938979559,0.41899037,664.79,664.22,1.50112174]
[1748938979767,0.41899115,664.78,664.39,1.12661494]
[1748938979966,0.922,664.8,664.39,1.12661494]
[1748938980168,0.922,664.8,664.38,1.12661494]
[1748938980367,0.41898975,664.79,664.38,1.12661494]
[1748938980568,0.922,664.8,664.38,1.12661494]
[1748938980963,0.41898974,664.79,664.39,1.12661494]
[1748938981162,0.922,664.8,664.4,1.12661494]
[1748938981560,0.41899156,664.79,664.4,1.12661494]
[1748938981762,0.41899156,664.78,664.4,1.12661494]
[1748938981962,0.41899274,664.77,664.4,1.12661494]
[1748938982263,0.922,664.8,664.4,1.12661494]
[1748938982264,0.41899274,664.76,664.4,1.12662394]
[1748938982463,0.922,664.8,664.4,1.12662394]
[1748938983172,0.41899074,664.79,664.43,1.12662394]
[1748938983363,0.922,664.8,664.49,1.12662394]
[1748938983767,0.922,664.8,664.51,1.12662394]
[1748938984462,0.922,664.8,664.55,1.12662394]
[1748938984970,0.41856065,664.79,664.55,1.12662394]
[1748938985170,0.922,664.8,664.55,1.12662394]
[1748938986071,0.922,664.8,664.55,1.12641575]
[1748938986565,0.922,664.8,664.56,1.12641575]
[1748938986767,0.922,664.8,664.55,1.12641575]
[1748938987567,0.922,664.8,664.59,1.12641575]
[1748938988172,0.922,664.8,664.58,1.12641575]
[1748938988375,0.41976649,664.79,664.58,1.12641575]
[1748938988672,0.922,664.8,664.58,1.12641575]
[1748938989173,0.922,664.8,664.57,1.12641575]
[1748938989373,0.922,664.8,664.45,1.50112174]
[1748938989374,0.41976683,664.79,664.58,1.12641575]
[1748938989576,0.922,664.8,664.56,1.12641575]
[1748938989973,0.922,664.8,664.56,1.12593146]
[1748938990274,0.922,664.8,664.55,1.12593146]
[1748938990474,0.922,664.8,664.56,1.12593146]
[1748938990675,0.41973576,664.79,664.56,1.12593146]
[1748938990868,0.41965221,664.78,664.56,1.12593146]
[1748938991067,0.922,664.8,664.56,1.12593146]